fUST/lending_fUST_20250724
["ID","MTS","AMOUNT","RATE_DAILY","PERIOD"]
[374554741,1753351867597,-499.78,0.00021643,2]
[374554742,1753351867606,-460.0,0.00021643,2]
[374554743,1753351867615,-1105.6,0.00021643,2]
[374554744,1753351867625,-460.0,0.00021643,2]
[374554745,1753351867634,-515.87135275,0.00021643,2]
[374554746,1753351867644,-549.22267384,0.00021643,2]
[374554747,1753351867656,-460.0,0.00021643,2]
[374554748,1753351867665,-460.0,0.00021643,2]
[374554749,1753351867674,-479.16,0.00021643,2]
[374554750,1753351867684,-460.0,0.00021643,2]
[374554751,1753351867693,-460.0,0.00021643,2]
[374554752,1753351867703,-1249.2,0.00021643,2]
[374554753,1753351867712,-460.0,0.00021643,2]
[374554754,1753351867722,-2021.56,0.00021643,2]
[374554755,1753351867734,-460.0,0.00021643,2]
[374554756,1753351867744,-537.54,0.00021643,2]
[374554757,1753351867753,-473.44,0.00021643,2]
[374554758,1753351867762,-1370.91,0.00021643,2]
[374554759,1753351867772,-460.0,0.00021643,2]
[374554760,1753351867782,-460.0,0.00021643,2]
[374554761,1753351867792,-460.0,0.00021643,2]
[374554762,1753351867803,-460.0,0.00021643,2]
[374554763,1753351867813,-460.0,0.00021643,2]
[374554764,1753351867823,-166.3096486,0.00021643,2]
[374554765,1753351867832,-460.0,0.00021643,2]
[374554766,1753351867842,-460.0,0.00021643,2]
[374554767,1753351867851,-460.0,0.00021643,2]
[374554768,1753351867936,-498.66,0.00021643,2]
[374554769,1753351867947,-460.0,0.00021643,2]
[374554770,1753351867957,-460.0,0.00021643,2]
[374554771,1753351867966,-460.0,0.00021643,2]
[374554772,1753351867977,-150.0,0.000217,2]
[374554773,1753351867986,-1530.49090454,0.00021762,5]
[374554774,1753351867996,-328.1,0.00021824,5]
[374554775,1753351868006,-2534.01,0.00021916,2]
[374554776,1753351868015,-460.0,0.00021917,2]
[374554777,1753351868024,-151.0,0.00021917,2]
[374554778,1753351868034,-452.911147,0.00021917,2]
[374554779,1753351868043,-452.911147,0.00021917,2]
[374554780,1753351868052,-739.48,0.00021917,2]
[374554781,1753351868062,-460.0,0.00021917,2]
[374554782,1753351868072,-1621.45,0.00021917,2]
[374554783,1753351868081,-460.0,0.00021917,2]
[374554784,1753351868090,-1025.92,0.00021917,2]
[374554785,1753351868099,-460.0,0.00021917,2]
[374554786,1753351868109,-460.0,0.00021917,2]
[374554787,1753351868119,-460.0,0.00021917,2]
[374554788,1753351868129,-460.0,0.00021917,2]
[374554789,1753351868139,-173.21,0.00021917,2]
[374554790,1753351868148,-460.0,0.00021917,2]
[374554791,1753351868159,-460.0,0.00021917,2]
[374554792,1753351868169,-460.0,0.00021917,2]
[374554793,1753351868179,-460.0,0.00021917,2]
[374554794,1753351868190,-358.71358579,0.00021917,2]
[374554795,1753351868199,-2562.09,0.00021917,2]
[374554796,1753351868209,-460.0,0.00021917,2]
[374554797,1753351868220,-460.0,0.00021917,2]
[374554798,1753351868230,-460.0,0.00021917,2]
[374554799,1753351868239,-833.32,0.00021917,2]
[374554800,1753351868249,-615.05,0.00021917,2]
[374554801,1753351868258,-460.0,0.00021917,2]
[374554802,1753351868268,-460.0,0.00021917,2]
[374554803,1753351868277,-460.0,0.00021917,2]
[374554804,1753351868288,-1320.28,0.00021917,2]
[374554805,1753351868297,-460.0,0.00021917,2]
[374554806,1753351868307,-1935.6,0.00021917,2]
[374554807,1753351868317,-747.65,0.00021917,2]
[374554808,1753351868328,-747.65,0.00021917,2]
[374554809,1753351868339,-460.0,0.00021917,2]
[374554810,1753351868350,-460.0,0.00021917,2]
[374554811,1753351868361,-554.16,0.00021917,2]
[374554812,1753351868371,-460.0,0.00021917,2]
[374554813,1753351868382,-460.0,0.00021917,2]
[374554814,1753351868393,-460.0,0.00021917,2]
[374554815,1753351868406,-460.0,0.00021917,2]
[374554816,1753351868421,-460.0,0.00021917,2]
[374554817,1753351868431,-460.0,0.00021917,2]
[374554818,1753351868441,-460.0,0.00021917,2]
[374554819,1753351868452,-972.56,0.00021917,2]
[374554820,1753351868463,-460.0,0.00021917,2]
[374554821,1753351868474,-1959.76,0.00021917,2]
[374554822,1753351868484,-501.66,0.00021917,2]
[374554823,1753351868494,-476.54,0.00021917,2]
[374554824,1753351868504,-493.61,0.00021917,2]
[374554825,1753351868515,-460.0,0.00021917,2]
[374554826,1753351868526,-460.0,0.00021917,2]
[374554827,1753351868536,-460.0,0.00021917,2]
[374554828,1753351868547,-460.0,0.00021917,2]
[374554829,1753351868557,-479.16,0.00021917,2]
[374554830,1753351868567,-549.6,0.00021917,2]
[374554831,1753351868578,-460.0,0.00021917,2]
[374554832,1753351868587,-1003.22,0.00021917,2]
[374554833,1753351868598,-460.0,0.00021917,2]
[374554834,1753351868608,-460.0,0.00021917,2]
[374554835,1753351868618,-572.29,0.00021917,2]
[374554836,1753351868628,-460.0,0.00021917,2]
[374554837,1753351868638,-535.05,0.00021917,2]
[374554838,1753351868648,-460.0,0.00021917,2]
[374554839,1753351868660,-460.0,0.00021917,2]
[374554840,1753351868669,-460.0,0.00021917,2]
[374554841,1753351868679,-460.0,0.00021917,2]
[374554842,1753351868690,-4977.75,0.00021917,2]
[374554843,1753351868700,-479.28,0.00021917,2]
[374554844,1753351868710,-501.34,0.00021917,2]
[374554845,1753351868720,-680.26,0.00021917,2]
[374554846,1753351868731,-471.74103081,0.00021917,2]
[374554847,1753351868743,-541.63,0.00021917,2]
[374554848,1753351868752,-460.0,0.00021917,2]
[374554849,1753351868762,-460.0,0.00021917,2]
[374554850,1753351868774,-996.17,0.00021917,2]
[374554851,1753351868783,-460.0,0.00021917,2]
[374554852,1753351868793,-538.26,0.00021917,2]
[374554853,1753351868802,-460.0,0.00021917,2]
[374554854,1753351868812,-499.78,0.00021917,2]
[374554855,1753351868822,-460.0,0.00021917,2]
[374554856,1753351868832,-1105.6,0.00021917,2]
[374554857,1753351868842,-460.0,0.00021917,2]
[374554858,1753351868851,-460.0,0.00021917,2]
[374554859,1753351868861,-460.0,0.00021917,2]
[374554860,1753351868871,-479.16,0.00021917,2]
[374554861,1753351868880,-460.0,0.00021917,2]
[374554862,1753351868890,-460.0,0.00021917,2]
[374554863,1753351868900,-1249.2,0.00021917,2]
[374554864,1753351868914,-460.0,0.00021917,2]
[374554865,1753351868924,-2021.56,0.00021917,2]
[374554866,1753351868934,-460.0,0.00021917,2]
[374554867,1753351868943,-537.54,0.00021917,2]
[374554868,1753351868953,-473.44,0.00021917,2]
[374554869,1753351868963,-1370.91,0.00021917,2]
[374554870,1753351868973,-460.0,0.00021917,2]
[374554871,1753351868983,-460.0,0.00021917,2]
[374554872,1753351868993,-460.0,0.00021917,2]
[374554873,1753351869003,-460.0,0.00021917,2]
[374554874,1753351869013,-333.09952573,0.00021917,2]
[374554875,1753351869023,-460.0,0.00021917,2]
[374554876,1753351869033,-460.0,0.00021917,2]
[374554877,1753351869043,-460.0,0.00021917,2]
[374554878,1753351869053,-498.66,0.00021917,2]
[374554879,1753351869063,-460.0,0.00021917,2]
[374554880,1753351869073,-460.0,0.00021917,2]
[374554881,1753351869083,-150.12541734,0.00021918,2]
[374554882,1753351869093,-1530.49090454,0.00021969,6]
[374554883,1753351869165,-7462.5,0.00022,7]
[374554884,1753351869183,-1510.97,0.00022,7]
[374554885,1753351869193,-157.0,0.00022,2]
[374554886,1753351869203,-500.0,0.0002216,2]
[374554887,1753351869213,-328.1,0.00022166,5]
[374554888,1753351869223,-1530.49090454,0.00022176,6]
[374554889,1753351869234,-151.0,0.00022191,7]
[374554890,1753351869244,-151.0,0.00022191,7]
[374554891,1753351869254,-460.0,0.00022191,2]
[374554892,1753351869264,-739.48,0.00022191,2]
[374554893,1753351869274,-460.0,0.00022191,2]
[374554894,1753351869285,-1621.45,0.00022191,2]
[374554895,1753351869294,-460.0,0.00022191,2]
[374554896,1753351869304,-1025.92,0.00022191,2]
[374554897,1753351869314,-460.0,0.00022191,2]
[374554898,1753351869323,-460.0,0.00022191,2]
[374554899,1753351869333,-460.0,0.00022191,2]
[374554900,1753351869342,-460.0,0.00022191,2]
[374554901,1753351869352,-460.0,0.00022191,2]
[374554902,1753351869361,-460.0,0.00022191,2]
[374554903,1753351869371,-460.0,0.00022191,2]
[374554904,1753351869380,-460.0,0.00022191,2]
[374554905,1753351869389,-2562.09,0.00022191,2]
[374554906,1753351869399,-460.0,0.00022191,2]
[374554907,1753351869412,-460.0,0.00022191,2]
[374554908,1753351869421,-460.0,0.00022191,2]
[374554909,1753351869431,-833.32,0.00022191,2]
[374554910,1753351869441,-615.05,0.00022191,2]
[374554911,1753351869450,-460.0,0.00022191,2]
[374554912,1753351869462,-460.0,0.00022191,2]
[374554913,1753351869472,-460.0,0.00022191,2]
[374554914,1753351869481,-1320.28,0.00022191,2]
[374554915,1753351869491,-460.0,0.00022191,2]
[374554916,1753351869501,-1935.6,0.00022191,2]
[374554917,1753351869511,-747.65,0.00022191,2]
[374554918,1753351869520,-460.0,0.00022191,2]
[374554919,1753351869530,-460.0,0.00022191,2]
[374554920,1753351869540,-554.16,0.00022191,2]
[374554921,1753351869549,-460.0,0.00022191,2]
[374554922,1753351869559,-460.0,0.00022191,2]
[374554923,1753351869568,-460.0,0.00022191,2]
[374554924,1753351869577,-460.0,0.00022191,2]
[374554925,1753351869587,-460.0,0.00022191,2]
[374554926,1753351869596,-460.0,0.00022191,2]
[374554927,1753351869606,-247.48757887,0.00022191,2]
[374554928,1753351869615,-972.56,0.00022191,2]
[374554929,1753351869624,-460.0,0.00022191,2]
[374554930,1753351869634,-1959.76,0.00022191,2]
[374554931,1753351869643,-501.66,0.00022191,2]
[374554932,1753351869652,-476.54,0.00022191,2]
[374554933,1753351869664,-493.61,0.00022191,2]
[374554934,1753351869674,-460.0,0.00022191,2]
[374554935,1753351869682,-460.0,0.00022191,2]
[374554936,1753351869691,-460.0,0.00022191,2]
[374554937,1753351869701,-460.0,0.00022191,2]
[374554938,1753351869710,-479.16,0.00022191,2]
[374554939,1753351869720,-549.6,0.00022191,2]
[374554940,1753351869731,-1003.22,0.00022191,2]
[374554941,1753351869742,-460.0,0.00022191,2]
[374554942,1753351869751,-460.0,0.00022191,2]
[374554943,1753351869760,-572.29,0.00022191,2]
[374554944,1753351869771,-460.0,0.00022191,2]
[374554945,1753351869780,-535.05,0.00022191,2]
[374554946,1753351869789,-460.0,0.00022191,2]
[374554947,1753351869799,-191.82372484,0.00022191,2]
[374554948,1753351869809,-460.0,0.00022191,2]
[374554949,1753351869818,-460.0,0.00022191,2]
[374554950,1753351869828,-479.28,0.00022191,2]
[374554951,1753351869837,-4977.75,0.00022191,2]
[374554952,1753351869846,-501.34,0.00022191,2]
[374554953,1753351869855,-680.26,0.00022191,2]
[374554954,1753351869865,-541.63,0.00022191,2]
[374554955,1753351869874,-460.0,0.00022191,2]
[374554956,1753351869883,-996.17,0.00022191,2]
[374554957,1753351869893,-460.0,0.00022191,2]
[374554958,1753351869903,-538.26,0.00022191,2]
[374554959,1753351869914,-460.0,0.00022191,2]
[374554960,1753351869924,-499.78,0.00022191,2]
[374554961,1753351869934,-460.0,0.00022191,2]
[374554962,1753351869944,-1105.6,0.00022191,2]
[374554963,1753351869954,-439.51496243,0.00022191,2]
[374554964,1753351869963,-460.0,0.00022191,2]
[374554965,1753351869972,-460.0,0.00022191,2]
[374554966,1753351869982,-479.16,0.00022191,2]
[374554967,1753351869992,-460.0,0.00022191,2]
[374554968,1753351870002,-460.0,0.00022191,2]
[374554969,1753351870012,-1249.2,0.00022191,2]
[374554970,1753351870022,-460.0,0.00022191,2]
[374554971,1753351870032,-2021.56,0.00022191,2]
[374554972,1753351870042,-537.54,0.00022191,2]
[374554973,1753351870053,-473.44,0.00022191,2]
[374554974,1753351870063,-1370.91,0.00022191,2]
[374554975,1753351870073,-460.0,0.00022191,2]
[374554976,1753351870083,-460.0,0.00022191,2]
[374554977,1753351870094,-460.0,0.00022191,2]
[374554978,1753351870104,-460.0,0.00022191,2]
[374554979,1753351870114,-460.0,0.00022191,2]
[374554980,1753351870124,-460.0,0.00022191,2]
[374554981,1753351870133,-498.66,0.00022191,2]
[374554982,1753351870143,-460.0,0.00022191,2]
[374554983,1753351870158,-460.0,0.00022191,2]
[374554984,1753351870169,-151.0,0.000222,9]
[374554985,1753351870178,-151.155984,0.000222,7]
[374554986,1753351870188,-151.0,0.000222,7]
[374554987,1753351870197,-151.0,0.000222,7]
[374554988,1753351870207,-151.0,0.000222,7]
[374554989,1753351870216,-151.0,0.000222,7]
[374554990,1753351870226,-151.0,0.00022318,2]
[374554991,1753351870236,-151.0,0.00022318,2]
[374554992,1753351870245,-215.0738,0.00022318,2]
[374554993,1753351870255,-12624.810388,0.00022383,7]
[374554994,1753351870265,-1530.49090454,0.00022383,7]
[374554995,1753351870275,-460.0,0.00022465,2]
[374554996,1753351870285,-151.0,0.00022465,7]
[374554997,1753351870294,-452.911147,0.00022465,7]
[374554998,1753351870304,-452.911147,0.00022465,7]
[374554999,1753351870314,-739.48,0.00022465,2]
[374555000,1753351870323,-460.0,0.00022465,2]
[374555001,1753351870334,-1621.45,0.00022465,2]
[374555002,1753351870344,-460.0,0.00022465,2]
[374555003,1753351870354,-1025.92,0.00022465,2]
[374555004,1753351870363,-460.0,0.00022465,2]
[374555005,1753351870373,-460.0,0.00022465,2]
[374555006,1753351870383,-460.0,0.00022465,2]
[374555007,1753351870393,-582.51362943,0.00022465,2]
[374555008,1753351870402,-460.0,0.00022465,2]
[374555009,1753351870415,-460.0,0.00022465,2]
[374555010,1753351870424,-460.0,0.00022465,2]
[374555011,1753351870434,-460.0,0.00022465,2]
[374555012,1753351870443,-2562.09,0.00022465,2]
[374555013,1753351870452,-189.6107509,0.00022465,2]
[374555014,1753351870462,-460.0,0.00022465,2]
[374555015,1753351870471,-376.35928539,0.00022465,2]
[374555016,1753351870481,-833.32,0.00022465,2]
[374555017,1753351870490,-615.05,0.00022465,2]
[374555018,1753351870500,-460.0,0.00022465,2]
[374555019,1753351870510,-460.0,0.00022465,2]
[374555020,1753351870520,-999.0,0.00022465,2]
[374555021,1753351870530,-460.0,0.00022465,2]
[374555022,1753351870540,-1320.28,0.00022465,2]
[374555023,1753351870550,-460.0,0.00022465,2]
[374555024,1753351870560,-1935.6,0.00022465,2]
[374555025,1753351870570,-747.65,0.00022465,2]
[374555026,1753351870579,-460.0,0.00022465,2]
[374555027,1753351870589,-460.0,0.00022465,2]
[374555028,1753351870599,-554.16,0.00022465,2]
[374555029,1753351870609,-460.0,0.00022465,2]
[374555030,1753351870619,-460.0,0.00022465,2]
[374555031,1753351870629,-460.0,0.00022465,2]
[374555032,1753351870639,-460.0,0.00022465,2]
[374555033,1753351870649,-460.0,0.00022465,2]
[374555034,1753351870659,-972.56,0.00022465,2]
[374555035,1753351870669,-470.38205395,0.00022465,2]
[374555036,1753351870679,-1959.76,0.00022465,2]
[374555037,1753351870688,-501.66,0.00022465,2]
[374555038,1753351870698,-476.54,0.00022465,2]
[374555039,1753351870708,-493.61,0.00022465,2]
[374555040,1753351870718,-460.0,0.00022465,2]
[374555041,1753351870727,-460.0,0.00022465,2]
[374555042,1753351870741,-460.0,0.00022465,2]
[374555043,1753351870750,-460.0,0.00022465,2]
[374555044,1753351870760,-479.16,0.00022465,2]
[374555045,1753351870770,-549.6,0.00022465,2]
[374555046,1753351870779,-1003.22,0.00022465,2]
[374555047,1753351870788,-460.0,0.00022465,2]
[374555048,1753351870797,-460.0,0.00022465,2]
[374555049,1753351870806,-572.29,0.00022465,2]
[374555050,1753351870817,-460.0,0.00022465,2]
[374555051,1753351870826,-535.05,0.00022465,2]
[374555052,1753351870835,-460.0,0.00022465,2]
[374555053,1753351870845,-460.0,0.00022465,2]
[374555054,1753351870854,-479.28,0.00022465,2]
[374555055,1753351870864,-4977.75,0.00022465,2]
[374555056,1753351870874,-501.34,0.00022465,2]
[374555057,1753351870883,-680.26,0.00022465,2]
[374555058,1753351870893,-541.63,0.00022465,2]
[374555059,1753351870904,-460.0,0.00022465,2]
[374555060,1753351870914,-996.17,0.00022465,2]
[374555061,1753351870924,-460.0,0.00022465,2]
[374555062,1753351870933,-538.26,0.00022465,2]
[374555063,1753351870943,-158.59123007,0.00022465,2]
[374555064,1753351870953,-499.78,0.00022465,2]
[374555065,1753351870962,-460.0,0.00022465,2]
[374555066,1753351870972,-1105.6,0.00022465,2]
[374555067,1753351870982,-460.0,0.00022465,2]
[374555068,1753351870991,-460.0,0.00022465,2]
[374555069,1753351871001,-479.16,0.00022465,2]
[374555070,1753351871011,-460.0,0.00022465,2]
[374555071,1753351871020,-460.0,0.00022465,2]
[374555072,1753351871030,-1249.2,0.00022465,2]
[374555073,1753351871040,-460.0,0.00022465,2]
[374555074,1753351871050,-2021.56,0.00022465,2]
[374555075,1753351871059,-537.54,0.00022465,2]
[374555076,1753351871068,-473.44,0.00022465,2]
[374555077,1753351871078,-1370.91,0.00022465,2]
[374555078,1753351871088,-460.0,0.00022465,2]
[374555079,1753351871098,-557.88599515,0.00022465,2]
[374555080,1753351871108,-460.0,0.00022465,2]
[374555081,1753351871118,-460.0,0.00022465,2]
[374555082,1753351871127,-460.0,0.00022465,2]
[374555083,1753351871136,-498.66,0.00022465,2]
[374555084,1753351871145,-460.0,0.00022465,2]
[374555085,1753351871157,-460.0,0.00022465,2]
[374555086,1753351871166,-460.0,0.00022465,2]
[374555087,1753351871176,-328.1,0.00022508,5]
[374555088,1753351871186,-150.38003459,0.00022583,2]
[374555089,1753351871196,-1530.49090454,0.0002259,7]
[374555090,1753351871206,-216.531631,0.00022603,2]
[374555091,1753351871215,-527.29,0.00022724,5]
[374555092,1753351871225,-520.7,0.00022724,5]
[374555093,1753351871234,-162.73233561,0.00022739,2]
[374555094,1753351871243,-739.48,0.00022739,2]
[374555095,1753351871252,-460.0,0.00022739,2]
[374555096,1753351871348,-1621.45,0.00022739,2]
[374555097,1753351871366,-460.0,0.00022739,2]
[374555098,1753351871376,-1025.92,0.00022739,2]
[374555099,1753351871385,-460.0,0.00022739,2]
[374555100,1753351871394,-460.0,0.00022739,2]
[374555101,1753351871404,-531.73,0.00022739,2]
[374555102,1753351871414,-460.0,0.00022739,2]
[374555103,1753351871423,-460.0,0.00022739,2]
[374555104,1753351871432,-460.0,0.00022739,2]
[374555105,1753351871442,-151.0,0.00022739,7]
[374555106,1753351871451,-460.0,0.00022739,2]
[374555107,1753351871460,-2562.09,0.00022739,2]
[374555108,1753351871469,-460.0,0.00022739,2]
[374555109,1753351871478,-833.32,0.00022739,2]
[374555110,1753351871488,-615.05,0.00022739,2]
[374555111,1753351871497,-460.0,0.00022739,2]
[374555112,1753351871506,-530.36,0.00022739,2]
[374555113,1753351871515,-460.0,0.00022739,2]
[374555114,1753351871524,-1320.28,0.00022739,2]
[374555115,1753351871533,-1935.6,0.00022739,2]
[374555116,1753351871542,-460.0,0.00022739,2]
[374555117,1753351871551,-249.29026326,0.00022739,2]
[374555118,1753351871561,-554.16,0.00022739,2]
[374555119,1753351871570,-460.0,0.00022739,2]
[374555120,1753351871580,-460.0,0.00022739,2]
[374555121,1753351871590,-460.0,0.00022739,2]
[374555122,1753351871599,-460.0,0.00022739,2]
[374555123,1753351871609,-460.0,0.00022739,2]
[374555124,1753351871619,-972.56,0.00022739,2]
[374555125,1753351871628,-1959.76,0.00022739,2]
[374555126,1753351871638,-501.66,0.00022739,2]
[374555127,1753351871647,-476.54,0.00022739,2]
[374555128,1753351871657,-493.61,0.00022739,2]
[374555129,1753351871667,-460.0,0.00022739,2]
[374555130,1753351871677,-460.0,0.00022739,2]
[374555131,1753351871687,-214.44820513,0.00022739,2]
[374555132,1753351871697,-479.16,0.00022739,2]
[374555133,1753351871707,-381.40382469,0.00022739,2]
[374555134,1753351871856,-168.19617531,0.00022739,2]
[374555135,1753351871866,-1003.22,0.00022739,2]
[374555136,1753351871875,-460.0,0.00022739,2]
[374555137,1753351871884,-460.0,0.00022739,2]
[374555138,1753351871894,-572.29,0.00022739,2]
[374555139,1753351871902,-460.0,0.00022739,2]
[374555140,1753351871911,-535.05,0.00022739,2]
[374555141,1753351871921,-460.0,0.00022739,2]
[374555142,1753351871930,-460.0,0.00022739,2]
[374555143,1753351871939,-479.28,0.00022739,2]
[374555144,1753351871948,-501.34,0.00022739,2]
[374555145,1753351871957,-4977.75,0.00022739,2]
[374555146,1753351871966,-680.26,0.00022739,2]
[374555147,1753351871976,-541.63,0.00022739,2]
[374555148,1753351871986,-460.0,0.00022739,2]
[374555149,1753351871996,-996.17,0.00022739,2]
[374555150,1753351872006,-460.0,0.00022739,2]
[374555151,1753351872015,-538.26,0.00022739,2]
[374555152,1753351872024,-199.260206,0.00022739,7]
[374555153,1753351872034,-499.78,0.00022739,2]
[374555154,1753351872044,-199.260206,0.00022739,7]
[374555155,1753351872054,-460.0,0.00022739,2]
[374555156,1753351872064,-1105.6,0.00022739,2]
[374555157,1753351872074,-212.66,0.00022739,2]
[374555158,1753351872084,-460.0,0.00022739,2]
[374555159,1753351872094,-479.16,0.00022739,2]
[374555160,1753351872103,-460.0,0.00022739,2]
[374555161,1753351872113,-1249.2,0.00022739,2]
[374555162,1753351872123,-460.0,0.00022739,2]
[374555163,1753351872133,-460.0,0.00022739,2]
[374555164,1753351872143,-2021.56,0.00022739,2]
[374555165,1753351872153,-151.0,0.00022739,7]
[374555166,1753351872164,-537.54,0.00022739,2]
[374555167,1753351872173,-151.0,0.00022739,7]
[374555168,1753351872183,-473.44,0.00022739,2]
[374555169,1753351872193,-1370.91,0.00022739,2]
[374555170,1753351872202,-460.0,0.00022739,2]
[374555171,1753351872212,-460.0,0.00022739,2]
[374555172,1753351872222,-460.0,0.00022739,2]
[374555173,1753351872231,-498.66,0.00022739,2]
[374555174,1753351872240,-460.0,0.00022739,2]
[374555175,1753351872250,-460.0,0.00022739,2]
[374555176,1753351872259,-460.0,0.00022739,2]
[374555177,1753351872269,-474.34331691,0.00022771,2]
[374555178,1753351872278,-205.0,0.0002278,2]
[374555179,1753351872287,-1530.49090454,0.00022797,7]
[374555180,1753351872297,-527.29,0.00022824,6]
[374555181,1753351872306,-520.7,0.00022824,2]
[374555182,1753351872316,-4000.0,0.00022831,4]
[374555183,1753351872325,-328.1,0.00022849,5]
[374555184,1753351872335,-3000.0,0.000229,2]
[374555185,1753351872344,-3000.0,0.0002291,2]
[374555186,1753351872353,-3000.0,0.0002292,2]
[374555187,1753351872362,-527.29,0.00022924,3]
[374555188,1753351872372,-520.7,0.00022924,7]
[374555189,1753351872382,-3000.0,0.0002293,2]
[374555190,1753351872391,-3000.0,0.0002294,2]
[374555191,1753351872401,-3000.0,0.0002295,2]
[374555192,1753351872411,-3000.0,0.0002296,2]
[374555193,1753351872420,-151.0,0.0002296,7]
[374555194,1753351872428,-151.0,0.0002296,7]
[374555195,1753351872437,-3000.0,0.0002297,2]
[374555196,1753351872446,-3000.0,0.0002298,2]
[374555197,1753351872455,-317.245903,0.0002299,7]
[374555198,1753351872464,-317.245903,0.0002299,7]
[374555199,1753351872473,-3000.0,0.0002299,2]
[374555200,1753351872482,-151.0,0.00023,7]
[374555201,1753351872491,-151.0,0.00023,7]
[374555202,1753351872500,-151.0,0.00023,7]
[374555203,1753351872510,-317.245903,0.00023,7]
[374555204,1753351872519,-317.245903,0.00023,7]
[374555205,1753351872528,-317.245903,0.00023,7]
[374555206,1753351872537,-317.245903,0.00023,7]
[374555207,1753351872546,-3000.0,0.00023,2]
[374555208,1753351872555,-1540.8,0.00023,7]
[374555209,1753351872564,-281.108876,0.00023,7]
[374555210,1753351872574,-452.911147,0.00023,7]
[374555211,1753351872583,-452.911147,0.00023,7]
[374555212,1753351872593,-452.911147,0.00023,7]
[374555213,1753351872602,-452.911147,0.00023,7]
[374555214,1753351872611,-452.911147,0.00023,7]
[374555215,1753351872620,-452.911147,0.00023,7]
[374555216,1753351872630,-150.57438,0.00023,24]
[374555217,1753351872639,-150.57438,0.00023,24]
[374555218,1753351872648,-160.0,0.00023,2]
[374555219,1753351872658,-1530.49090454,0.00023003,8]
[374555220,1753351872668,-3000.0,0.0002301,2]
[374555221,1753351872677,-739.48,0.00023013,2]
[374555222,1753351872687,-460.0,0.00023013,2]
[374555223,1753351872696,-1621.45,0.00023013,2]
[374555224,1753351872705,-392.70825012,0.00023013,2]
[374555225,1753351872715,-1025.92,0.00023013,2]
[374555226,1753351872725,-460.0,0.00023013,2]
[374555227,1753351872738,-460.0,0.00023013,2]
[374555228,1753351872747,-460.0,0.00023013,2]
[374555229,1753351872757,-460.0,0.00023013,2]
[374555230,1753351872766,-460.0,0.00023013,2]
[374555231,1753351872776,-468.71124717,0.00023013,2]
[374555232,1753351872785,-2562.09,0.00023013,2]
[374555233,1753351872795,-833.32,0.00023013,2]
[374555234,1753351872804,-615.05,0.00023013,2]
[374555235,1753351872815,-460.0,0.00023013,2]
[374555236,1753351872824,-460.0,0.00023013,2]
[374555237,1753351872834,-1320.28,0.00023013,2]
[374555238,1753351872843,-1935.6,0.00023013,2]
[374555239,1753351872853,-460.0,0.00023013,2]
[374555240,1753351872862,-554.16,0.00023013,2]